bitfinex-derivatives/quotes_BNBF0:USTF0_20250507
["timestamp","ask_amount","ask_price","bid_price","bid_amount"]
[1746659672930,1.25447187,603.06,601.91,3.58827558]
[1746659673129,1.25447187,603.05,601.91,3.58827558]
[1746659673329,1.25447187,603.04,601.91,3.58827558]
[1746659673630,1.25447187,603.03,601.91,3.58827558]
[1746659673830,1.25447187,603.02,601.91,3.58827558]
[1746659674032,1.25447187,603.01,601.91,3.58827558]
[1746659674233,1.25447187,603.0,601.91,0.33227558]
[1746659674430,1.25447187,602.99,601.91,0.33227558]
[1746659674630,1.25447187,602.98,601.91,0.33227558]
[1746659674933,1.25447187,602.97,601.91,0.33227558]
[1746659675232,1.25447187,602.96,601.91,0.33227558]
[1746659675432,1.25447187,602.95,601.91,0.33227558]
[1746659675634,1.25447187,602.94,601.91,0.33227558]
[1746659675833,1.25447187,602.93,601.91,0.33227558]
[1746659676031,1.25447187,602.92,601.91,0.33227558]
[1746659676233,1.25447187,602.91,601.91,0.33227558]
[1746659676436,1.25447187,602.9,601.91,0.33227558]
[1746659676729,1.25447187,602.89,601.91,0.33227558]
[1746659676933,1.25447187,602.88,601.91,0.33227558]
[1746659677135,1.25447187,602.87,601.91,0.33227558]
[1746659677433,1.25447187,602.86,601.91,0.33227558]
[1746659677633,1.25447187,602.85,601.91,0.33227558]
[1746659677833,1.25447187,602.84,601.91,0.33227558]
[1746659678034,1.25447187,602.83,601.91,0.33227558]
[1746659678229,1.25447187,602.82,601.91,0.33227558]
[1746659678531,1.25447187,602.81,601.91,0.33227558]
[1746659678728,1.25447187,602.8,601.91,1.33227558]
[1746659678933,1.25447187,602.79,601.91,1.33227558]
[1746659679127,1.25447187,602.78,601.91,2.09727558]
[1746659679332,0.28883983,603.09,601.91,2.09727558]
[1746659679333,1.25447187,602.77,601.91,2.88527558]
[1746659679531,1.25447187,602.76,601.91,3.62527558]
[1746659679733,1.25447187,602.75,601.91,3.62527558]
[1746659679934,1.25447187,602.74,601.91,3.62527558]
[1746659680135,1.25447187,602.73,601.91,3.62527558]
[1746659680434,1.25447187,602.72,601.91,3.62527558]
[1746659680629,1.25447187,602.71,601.91,3.62527558]
[1746659680832,0.28883144,603.09,601.91,3.62527558]
[1746659681030,1.25501451,603.08,601.91,3.62527558]
[1746659681234,1.25501451,603.07,601.91,3.62527558]
[1746659681535,1.25499803,603.06,601.91,3.62527558]
[1746659681736,1.25499803,603.05,601.91,3.62527558]
[1746659682037,1.25499803,603.04,601.91,3.62527558]
[1746659682237,1.25499803,603.03,601.91,3.62527558]
[1746659682435,1.25494306,603.02,601.91,3.62527558]
[1746659682638,1.25494306,603.01,601.91,3.62527558]
[1746659682938,1.25494306,603.0,601.91,3.62527558]
[1746659683134,1.25494306,602.99,601.91,3.62527558]
[1746659683339,1.25494306,602.98,601.91,3.62527558]
[1746659683540,1.25494306,602.97,601.91,3.62527558]
[1746659683736,1.25494306,602.96,601.91,3.62527558]
[1746659684038,1.25494306,602.95,601.91,3.62527558]
[1746659684239,1.25494306,602.94,601.91,3.62527558]
[1746659684440,1.25494306,602.93,601.91,3.62527558]
[1746659684640,1.25494306,602.92,601.91,3.62527558]
[1746659684941,1.25494306,602.91,601.91,3.62527558]
[1746659685145,1.25494306,602.9,601.91,3.62527558]
[1746659685340,1.25494306,602.89,601.91,3.62527558]
[1746659685539,1.25494306,602.88,601.91,3.62527558]
[1746659685742,1.25494306,602.87,601.91,3.62527558]
[1746659685943,1.25494306,602.86,601.91,3.62527558]
[1746659686243,1.25494306,602.85,601.91,3.62527558]
[1746659686443,1.25494306,602.84,601.91,3.62527558]
[1746659686744,1.25494306,602.83,601.91,3.62527558]
[1746659687044,1.25494306,602.82,601.91,3.62527558]
[1746659687244,1.25494306,602.81,601.91,3.62527558]
[1746659687545,1.25494306,602.8,601.91,3.62527558]
[1746659687743,1.25494306,602.79,601.91,3.62527558]
[1746659687943,1.25517108,602.78,601.91,3.62527558]
[1746659688146,1.25517108,602.77,601.91,3.62527558]
[1746659688343,1.25517108,602.76,601.91,3.62527558]
[1746659688545,1.25517108,602.75,601.91,3.62527558]
[1746659688843,1.25517108,602.74,601.91,3.62527558]
[1746659689041,1.25517108,602.73,601.91,3.62527558]
[1746659689240,1.25517108,602.72,601.91,3.62527558]
[1746659689445,1.25517108,602.71,601.91,3.62527558]
[1746659689646,0.28883144,603.09,601.91,3.62527558]
[1746659689847,1.25513303,603.08,601.91,3.62527558]
[1746659690040,1.25513303,603.07,601.91,3.62527558]
[1746659690241,1.25513303,603.06,601.91,3.62527558]
[1746659690445,1.25513303,603.05,601.91,3.62527558]
[1746659690650,1.25513303,603.04,601.91,3.62527558]
[1746659690851,1.25513303,603.03,601.91,3.62527558]
[1746659691050,1.25513303,603.02,601.91,3.62527558]
[1746659691247,1.25513303,603.01,601.91,3.62527558]
[1746659691546,1.25513303,603.0,601.91,3.62527558]
[1746659691752,1.25513303,602.99,601.91,3.62527558]
[1746659692053,1.25513303,602.98,601.91,3.62527558]
[1746659692252,1.25513303,602.97,601.91,3.62527558]
[1746659692556,1.25513303,602.96,601.91,3.62527558]
[1746659692751,1.25513303,602.95,601.91,3.62527558]
[1746659692951,1.25513303,602.94,601.91,3.62527558]
[1746659693149,0.28880147,603.09,601.91,3.62527558]
[1746659693150,1.25513303,602.93,601.91,3.62527558]
[1746659693350,1.25498164,602.92,601.91,3.62527558]
[1746659693549,1.25498164,602.91,601.91,3.62527558]
[1746659693753,1.25498164,602.9,601.91,3.62527558]
[1746659693953,0.28880147,603.09,601.91,3.62527558]
[1746659694154,1.25568789,603.08,601.91,3.62527558]
[1746659694347,0.28880147,603.09,601.91,3.62527558]
[1746659695050,1.25573484,603.08,601.91,3.62527558]
[1746659695251,1.25573484,603.07,601.91,3.62527558]
[1746659695458,1.25573484,603.06,601.91,3.62527558]
[1746659695655,1.25573484,603.05,601.91,3.62527558]
[1746659695855,1.25582954,603.04,601.91,3.62527558]
[1746659696151,1.25582954,603.03,601.91,3.62527558]
[1746659696351,1.25582954,603.02,601.91,3.62527558]
[1746659696550,1.25582954,603.01,601.91,3.62527558]
[1746659696853,1.25582954,603.0,601.91,3.62527558]
[1746659697054,1.25582954,602.99,601.91,3.62527558]
[1746659697357,1.25582954,602.98,601.91,3.62527558]
[1746659697556,1.25582954,602.97,601.91,3.62527558]
[1746659697754,1.25582954,602.96,601.91,3.62527558]
[1746659697954,1.25582954,602.95,601.91,3.62527558]
[1746659698155,1.25582954,602.94,601.91,3.62527558]
[1746659698353,1.25582954,602.93,601.91,3.62527558]
[1746659698553,1.25582954,602.92,601.91,3.62527558]
[1746659698856,1.25582954,602.91,601.91,3.62527558]
[1746659699054,1.25582954,602.9,601.91,3.62527558]
[1746659699254,1.25582954,602.89,601.91,3.62527558]
[1746659699455,1.25582954,602.88,601.91,3.62527558]
[1746659699657,1.25582954,602.87,601.91,3.62527558]
[1746659699858,1.25582954,602.86,601.91,3.62527558]
[1746659700058,1.25582954,602.85,601.91,3.62527558]
[1746659700253,1.25582954,602.84,601.91,3.62527558]
[1746659700453,1.25582954,602.83,601.91,3.62527558]
[1746659700655,1.25582954,602.82,601.91,3.62527558]
[1746659700959,1.25582954,602.81,601.91,3.62527558]
[1746659701159,1.25582954,602.8,601.91,3.62527558]
[1746659701458,1.25582954,602.79,601.91,3.62527558]
[1746659701659,1.25582954,602.78,601.91,3.62527558]
[1746659701860,1.25582954,602.77,601.91,3.62527558]
[1746659702055,1.25582954,602.76,601.91,3.62527558]
[1746659702259,1.25582954,602.75,601.91,3.62527558]
[1746659702460,1.25840604,602.74,601.91,3.62527558]
[1746659702661,1.25840604,602.73,601.91,3.62527558]
[1746659702860,1.25840604,602.72,601.91,3.62527558]
[1746659703060,1.25840604,602.71,601.91,3.62527558]
[1746659703360,0.28884462,603.0,601.91,3.62527558]
[1746659703559,1.25859605,602.99,601.91,3.62527558]
[1746659703755,1.25859605,602.98,601.91,3.62527558]
[1746659703956,1.25859605,602.97,601.91,3.62527558]
[1746659704258,1.25859605,602.96,601.91,3.62527558]
[1746659704457,1.25859605,602.95,601.91,3.62527558]
[1746659704659,1.25859605,602.94,601.91,3.62527558]
[1746659704961,1.25859605,602.93,601.91,3.62527558]
[1746659705262,1.25859605,602.92,601.91,3.62527558]
[1746659705461,1.25859605,602.91,601.91,3.62527558]
[1746659705657,1.25859605,602.9,601.91,3.62527558]
[1746659705857,1.25859605,602.89,601.91,3.62527558]
[1746659706157,0.28884462,603.0,601.91,3.62527558]
[1746659706158,1.25859605,602.88,601.91,3.62527558]
[1746659706363,1.25859605,602.87,601.91,3.62527558]
[1746659706564,1.25859605,602.86,601.91,3.62527558]
[1746659706760,1.25859605,602.85,601.91,3.62527558]
[1746659706963,1.25859605,602.84,601.91,3.62527558]
[1746659707161,1.25859605,602.83,601.91,3.62527558]
[1746659707360,1.25859605,602.82,601.91,3.62527558]
[1746659707560,1.25859605,602.81,601.91,3.62527558]
[1746659707760,1.25859605,602.8,601.91,3.62527558]
[1746659707964,1.25859605,602.79,601.91,3.62527558]
[1746659708162,1.25859605,602.78,601.91,3.62527558]
[1746659708361,1.25859605,602.77,601.91,3.62527558]
[1746659708567,0.28882305,603.08,601.91,3.62527558]
[1746659708769,1.25655424,603.07,601.91,3.62527558]
[1746659708967,1.25655424,603.06,601.91,3.62527558]
[1746659709167,1.25655424,603.05,601.91,3.62527558]
[1746659709368,1.25655424,603.04,601.91,3.62527558]
[1746659709567,1.25655424,603.03,601.91,3.62527558]
[1746659709768,1.25650435,603.02,601.91,3.62527558]
[1746659709967,1.25650435,603.01,601.91,3.62527558]
[1746659710168,1.25650435,603.0,601.91,3.62527558]
[1746659710368,1.25650435,602.99,601.91,3.62527558]
[1746659710570,1.25650435,602.98,601.91,3.62527558]
[1746659710769,1.25650435,602.97,601.91,3.62527558]
[1746659711066,1.25650435,602.96,601.91,3.62527558]
[1746659711263,2.25341163,602.95,601.91,3.62527558]
[1746659711468,1.25650435,602.94,601.91,3.62527558]
[1746659711669,1.25650435,602.93,601.91,3.62527558]
[1746659711868,2.25341163,602.92,601.91,3.62527558]
[1746659712068,1.25650435,602.91,601.91,3.62527558]
[1746659712370,2.25341163,602.9,601.91,3.62527558]
[1746659712564,1.25650435,602.89,601.91,3.62527558]
[1746659712769,2.25341163,602.88,601.91,3.62527558]
[1746659713071,2.25341163,602.87,601.91,3.62527558]
[1746659713264,1.25650435,602.86,601.91,3.62527558]
[1746659713463,1.25650435,602.85,601.91,3.62527558]
[1746659713668,2.25341163,602.84,601.91,3.62527558]
[1746659713963,1.25650435,602.83,601.91,3.62527558]
[1746659714166,2.25341163,602.82,601.91,3.62527558]
[1746659714465,1.25650435,602.81,601.91,3.62527558]
[1746659714665,1.25650435,602.8,601.91,3.62527558]
[1746659714871,1.25650435,602.79,601.91,3.62527558]
[1746659715167,1.25650435,602.78,601.91,3.62527558]
[1746659715368,1.25650435,602.77,601.91,3.62527558]
[1746659715570,1.25650435,602.76,601.91,3.62527558]
[1746659715768,1.25650435,602.75,601.91,3.62527558]
[1746659715967,1.25650435,602.74,601.91,3.62527558]
[1746659716167,0.99690728,602.74,601.91,3.62527558]
[1746659716768,0.99690728,602.73,601.91,3.62527558]
[1746659717472,0.28883263,603.08,601.91,3.62527558]
[1746659717670,1.25977217,603.07,601.91,3.62527558]
[1746659717870,1.25977217,603.06,601.91,3.62527558]
[1746659718068,1.25977217,603.05,601.91,3.62527558]
[1746659718271,1.25977217,603.04,601.91,3.62527558]
[1746659718574,1.25977217,603.03,601.91,3.62527558]
[1746659718875,1.25977217,603.02,601.91,3.62527558]
[1746659719076,1.25977217,603.01,601.91,3.62527558]
[1746659719272,1.25977217,603.0,601.91,3.62527558]
[1746659719473,1.25977217,602.99,601.91,3.62527558]
[1746659719673,1.25977217,602.98,601.91,3.62527558]
[1746659719878,1.25977217,602.97,601.91,3.62527558]
[1746659720074,2.25721186,602.96,601.91,3.62527558]
[1746659720278,1.25977217,602.95,601.91,3.62527558]
[1746659720476,2.2569903,602.94,601.91,3.62527558]
[1746659720675,1.25955061,602.93,601.91,3.62527558]
[1746659720879,2.2569903,602.92,601.91,3.62527558]
[1746659721081,2.2569903,602.91,601.91,3.62527558]
[1746659721282,1.25955061,602.9,601.91,3.62527558]
[1746659721482,2.2569903,602.89,601.91,3.62527558]
[1746659721678,1.25955061,602.88,601.91,3.62527558]
[1746659721881,2.2569903,602.87,601.91,3.62527558]
[1746659722082,1.25955061,602.86,601.91,3.62527558]
[1746659722279,1.25955061,602.85,601.91,3.62527558]
[1746659722480,2.2569903,602.84,601.91,3.62527558]
[1746659722683,1.25955061,602.83,601.91,3.62527558]
[1746659722878,1.25955061,602.82,601.91,3.62527558]
[1746659723081,2.2569903,602.81,601.91,3.62527558]
[1746659723376,1.25955061,602.8,601.91,3.62527558]
[1746659723580,1.25955061,602.79,601.91,3.62527558]
[1746659723784,2.2569903,602.78,601.91,3.62527558]
[1746659723983,1.25955061,602.77,601.91,3.62527558]
[1746659724181,1.25955061,602.76,601.91,3.62527558]
[1746659724379,2.2569903,602.75,601.91,3.62527558]
[1746659724678,1.25955061,602.74,601.91,3.62527558]
[1746659724880,0.99743969,602.74,601.91,3.62527558]
[1746659725283,0.99743969,602.73,601.91,3.62527558]
[1746659725482,0.99743969,602.72,601.91,3.62527558]
[1746659726287,0.99743969,602.71,601.91,3.62527558]
[1746659726581,0.99743969,602.7,601.91,3.62527558]
[1746659726983,0.99743969,602.69,601.91,3.62527558]
[1746659727183,0.99743969,602.68,601.91,3.62527558]
[1746659727585,0.99743969,602.67,601.91,3.62527558]
[1746659727986,0.28883263,603.08,601.91,3.62527558]
[1746659728187,1.25903477,603.07,601.91,3.62527558]
[1746659728387,1.25903477,603.06,601.91,3.62527558]
[1746659728685,1.25903477,603.05,601.91,3.62527558]
[1746659728885,2.25654498,603.04,601.91,3.62527558]
[1746659729085,1.25903477,603.03,601.91,3.62527558]
[1746659729285,1.25903477,603.02,601.91,3.62527558]
[1746659729483,1.25903477,603.01,601.91,3.62527558]
[1746659729687,2.25654498,603.0,601.91,3.62527558]
[1746659729888,1.25903477,602.99,601.91,3.62527558]
[1746659730088,1.25903477,602.98,601.91,3.62527558]
[1746659730288,1.25903477,602.97,601.91,3.62527558]
[1746659730491,1.25903477,602.96,601.91,3.62527558]
[1746659730690,1.25903477,602.95,601.91,3.62527558]
[1746659730884,1.25903477,602.94,601.91,3.62527558]
[1746659731182,1.25903477,602.93,601.91,3.62527558]
[1746659731387,2.25654498,602.92,601.91,3.62527558]
[1746659731587,1.25903477,602.91,601.91,3.62527558]
[1746659731889,0.28874756,603.08,601.91,3.62527558]
[1746659731890,2.25654498,602.9,601.91,3.62527558]
[1746659732188,1.25903477,602.89,601.91,3.62527558]
[1746659732386,2.25654498,602.88,601.91,3.62527558]
[1746659732584,1.25903477,602.87,601.91,3.62527558]
[1746659732783,1.25903477,602.86,601.91,3.62527558]
[1746659732991,1.25903477,602.85,601.91,3.62527558]
[1746659733188,1.25903477,602.84,601.91,3.62527558]
[1746659733490,2.25654498,602.83,601.91,3.62527558]
[1746659733690,1.25903477,602.82,601.91,3.62527558]
[1746659733990,2.25654498,602.81,601.91,3.62527558]
[1746659734290,1.25903477,602.8,601.91,3.62527558]
[1746659734490,1.25903477,602.79,601.91,3.62527558]
[1746659734687,2.25654498,602.78,601.91,3.62527558]
[1746659734885,1.25903477,602.77,601.91,3.62527558]
[1746659735090,1.25903477,602.76,601.91,3.62527558]
[1746659735290,1.25903477,602.75,601.91,3.62527558]
[1746659735491,0.99751021,602.78,601.91,3.62527558]
[1746659735492,2.25654498,602.74,601.91,3.62527558]
[1746659735693,0.99751021,602.74,601.91,3.62527558]
[1746659736291,0.99751021,602.73,601.91,3.62527558]
[1746659736793,0.99751021,602.72,601.91,3.62527558]
[1746659737292,0.99751021,602.71,601.91,3.62527558]
[1746659737692,0.99751021,602.7,601.91,3.62527558]
[1746659738088,0.99751021,602.69,601.91,3.62527558]
[1746659738794,0.99751021,602.68,601.91,3.62527558]
[1746659739592,0.99751021,602.67,601.91,3.62527558]
[1746659739996,0.99751021,602.66,601.91,3.62527558]
[1746659740694,0.99751021,602.65,601.91,3.62527558]
[1746659741395,0.28885781,603.01,601.91,3.62527558]
[1746659741589,1.25983777,603.0,601.91,3.62527558]
[1746659741789,1.25983777,602.99,601.91,3.62527558]
[1746659741993,1.25983777,602.98,601.91,3.62527558]
[1746659742190,1.26019114,602.97,601.91,3.62527558]
[1746659742494,2.25807715,602.96,601.91,3.62527558]
[1746659742694,1.26019114,602.95,601.91,3.62527558]
[1746659742889,1.26019114,602.94,601.91,3.62527558]
[1746659743088,1.26019114,602.93,601.91,3.62527558]
[1746659743292,2.25807715,602.92,601.91,3.62527558]
[1746659743491,1.26019114,602.91,601.91,3.62527558]
[1746659743689,2.25807715,602.9,601.91,3.62527558]
[1746659743893,1.26019114,602.89,601.91,3.62527558]
[1746659744095,1.26019114,602.88,601.91,3.62527558]
[1746659744289,1.26019114,602.87,601.91,3.62527558]
[1746659744492,1.26019114,602.86,601.91,3.62527558]
[1746659744692,1.26019114,602.85,601.91,3.62527558]
[1746659744896,1.26019114,602.84,601.91,3.62527558]
[1746659745097,2.25807715,602.83,601.91,3.62527558]
[1746659745291,1.26019114,602.82,601.91,3.62527558]
[1746659745492,1.26019114,602.81,601.91,3.62527558]
[1746659745698,1.26019114,602.8,601.91,3.62527558]
[1746659745891,1.26019114,602.79,601.91,3.62527558]
[1746659746094,1.26019114,602.78,601.91,3.62527558]
[1746659746296,1.26019114,602.77,601.91,3.62527558]
[1746659746496,1.26019114,602.76,601.91,3.62527558]
[1746659746693,1.26019114,602.75,601.91,3.62527558]
[1746659746896,0.99788601,602.76,601.91,3.62527558]
[1746659746897,1.26019114,602.74,601.91,3.62527558]
[1746659747097,1.26019114,602.73,601.91,3.62527558]
[1746659747291,2.25807715,602.72,601.91,3.62527558]
[1746659747492,1.26019114,602.71,601.91,3.62527558]
[1746659747693,1.26019114,602.7,601.91,3.62527558]
[1746659747895,2.25807715,602.69,601.91,3.62527558]
[1746659748097,0.99788601,602.69,601.91,3.62527558]
[1746659748498,0.99788601,602.68,601.91,3.62527558]
[1746659748800,0.99788601,602.67,601.91,3.62527558]
[1746659748992,0.99788601,602.66,601.91,3.62527558]
[1746659749697,0.28885901,603.01,601.91,3.62527558]
[1746659749899,1.26011213,603.0,601.91,3.62527558]
[1746659750093,2.25808999,602.99,601.91,3.62527558]
[1746659750293,1.26011213,602.98,601.91,3.62527558]
[1746659750496,1.26011213,602.97,601.91,3.62527558]
[1746659750693,1.26011213,602.96,601.91,3.62527558]
[1746659750895,2.25808999,602.95,601.91,3.62527558]
[1746659751093,1.26007828,602.94,601.91,3.62527558]
[1746659751395,2.25805614,602.93,601.91,3.62527558]
[1746659751598,1.26007828,602.92,601.91,3.62527558]
[1746659751799,1.26007828,602.91,601.91,3.62527558]
[1746659752000,1.26007828,602.9,601.91,3.62527558]
[1746659752195,2.25805614,602.89,601.91,3.62527558]
[1746659752397,2.25805614,602.88,601.91,3.62527558]
[1746659752598,1.26007828,602.87,601.91,3.62527558]
[1746659752899,1.26007828,602.86,601.91,3.62527558]
[1746659753101,2.25800107,602.85,601.91,3.62527558]
[1746659753300,1.26002321,602.84,601.91,3.62527558]
[1746659753502,2.25800107,602.83,601.91,3.62527558]
[1746659753694,1.26002321,602.82,601.91,3.62527558]
[1746659753898,1.26002321,602.81,601.91,3.62527558]
[1746659754098,1.26002321,602.8,601.91,3.62527558]
[1746659754301,2.25800107,602.79,601.91,3.62527558]
[1746659754501,1.26002321,602.78,601.91,3.62527558]
[1746659754703,1.26002321,602.77,601.91,3.62527558]
[1746659754903,1.26002321,602.76,601.91,3.62527558]
[1746659755104,1.26207599,602.75,601.91,3.62527558]
[1746659755396,0.99797786,602.79,601.91,3.62527558]
[1746659755397,1.26207599,602.74,601.91,3.62527558]
[1746659755601,1.26207599,602.73,601.91,3.62527558]
[1746659756003,0.99797786,602.79,601.91,3.62527558]
[1746659756196,1.26209802,602.78,601.91,3.62527558]
[1746659756398,1.26209802,602.77,601.91,3.62527558]
[1746659756697,2.26053249,602.76,601.91,3.62527558]
[1746659756898,1.26255463,602.75,601.91,3.62527558]
[1746659757101,2.26053249,602.74,601.91,3.62527558]
[1746659757302,1.26255463,602.73,601.91,3.62527558]
[1746659757504,1.26257587,602.72,601.91,3.62527558]
[1746659757703,1.26257587,602.71,601.91,3.62527558]
[1746659757905,0.99797786,602.71,601.91,3.62527558]
[1746659758305,1.26225837,602.7,601.91,3.62527558]
[1746659758505,0.99797786,602.71,601.91,3.62527558]
[1746659758706,1.26226915,602.7,601.91,3.62527558]
[1746659758907,0.99797786,602.69,601.91,3.62527558]
[1746659759302,0.99797786,602.68,601.91,3.62527558]
[1746659759703,0.99797786,602.67,601.91,3.62527558]
[1746659760306,0.99797786,602.66,601.91,3.62527558]
[1746659761309,0.99797786,602.65,601.91,3.62527558]
[1746659761607,0.99797786,602.64,601.91,3.62527558]
[1746659762207,0.28885901,603.01,601.91,3.62527558]
[1746659762409,1.2637092,603.0,601.91,3.62527558]
[1746659762609,1.26375624,602.99,601.91,3.62527558]
[1746659762909,2.26258667,602.98,601.91,3.62527558]
[1746659763110,1.26375624,602.97,601.91,3.62527558]
[1746659763308,1.26375624,602.96,601.91,3.62527558]
[1746659763510,2.26258667,602.95,601.91,3.62527558]
[1746659763712,1.26375624,602.94,601.91,3.62527558]
[1746659763909,2.26258667,602.93,601.91,3.62527558]
[1746659764111,1.26375624,602.92,601.91,3.62527558]
[1746659764311,2.26305487,602.91,601.91,3.62527558]
[1746659764510,1.26422444,602.9,601.91,3.62527558]
[1746659764708,2.26305487,602.89,601.91,3.62527558]
[1746659764911,1.26422444,602.88,601.91,3.62527558]
[1746659765211,2.26305487,602.87,601.91,3.62527558]
[1746659765410,1.26422444,602.86,601.91,3.62527558]
[1746659765703,0.99883043,602.87,601.91,3.62527558]
[1746659765704,1.26422444,602.85,601.91,3.62527558]
[1746659765910,2.26305487,602.84,601.91,3.62527558]
[1746659766111,1.26402919,602.83,601.91,3.62527558]
[1746659766411,1.26402919,602.82,601.91,3.62527558]
[1746659766606,2.26285962,602.81,601.91,3.62527558]
[1746659766806,1.26402919,602.8,601.91,3.62527558]
[1746659767011,2.26285962,602.79,601.91,3.62527558]
[1746659767212,1.26402919,602.78,601.91,3.62527558]
[1746659767409,1.26402919,602.77,601.91,3.62527558]
[1746659767613,1.26402919,602.76,601.91,3.62527558]
[1746659767814,1.26402919,602.75,601.91,3.62527558]
[1746659768014,1.26402919,602.74,601.91,3.62527558]
[1746659768212,1.26402919,602.73,601.91,3.62527558]
[1746659768413,1.26402919,602.72,601.91,3.62527558]
[1746659768612,2.26285962,602.71,601.91,3.62527558]
[1746659768814,1.26402919,602.7,601.91,3.62527558]
[1746659769014,1.26402919,602.69,601.91,3.62527558]
[1746659769213,2.26285962,602.68,601.91,3.62527558]
[1746659769413,1.26402919,602.67,601.91,3.62527558]
[1746659769714,0.99883043,602.66,601.91,3.62527558]
[1746659770315,0.99883043,602.65,601.91,3.62527558]
[1746659770710,0.99883043,602.64,601.91,3.62527558]
[1746659770914,0.99883043,602.63,601.91,3.62527558]
[1746659771618,0.28885901,603.01,601.91,3.62527558]
[1746659771811,1.26177152,603.0,601.91,3.62527558]
[1746659772013,1.26177152,602.99,601.91,3.62527558]
[1746659772213,2.25998881,602.98,601.91,3.62527558]
[1746659772414,1.26177152,602.97,601.91,3.62527558]
[1746659772612,1.26177152,602.96,601.91,3.62527558]
[1746659772813,1.26177152,602.95,601.91,3.62527558]
[1746659773011,2.25998881,602.94,601.91,3.62527558]
[1746659773214,1.26177152,602.93,601.91,3.62527558]
[1746659773417,1.26177152,602.92,601.91,3.62527558]
[1746659773611,2.25998881,602.91,601.91,3.62527558]
[1746659773816,1.26177152,602.9,601.91,3.62527558]
[1746659774014,2.25998881,602.89,601.91,3.62527558]
[1746659774215,1.26177152,602.88,601.91,3.62527558]
[1746659774411,2.25998881,602.87,601.91,3.62527558]
[1746659774614,1.26177152,602.86,601.91,3.62527558]
[1746659774814,0.99821729,602.87,601.91,3.62527558]
[1746659774815,1.26177152,602.85,601.91,3.62527558]
[1746659775016,2.25998881,602.84,601.91,3.62527558]
[1746659775214,1.26177152,602.83,601.91,3.62527558]
[1746659775418,2.25998881,602.82,601.91,3.62527558]
[1746659775618,1.26177152,602.81,601.91,3.62527558]
[1746659775816,2.25998881,602.8,601.91,3.62527558]
[1746659776013,1.26177152,602.79,601.91,3.62527558]
[1746659776214,1.26177152,602.78,601.91,3.62527558]
[1746659776417,2.25998881,602.77,601.91,3.62527558]
[1746659776617,1.26177152,602.76,601.91,3.62527558]
[1746659776918,1.26177152,602.75,601.91,3.62527558]
[1746659777112,1.26177152,602.74,601.91,3.62527558]
[1746659777317,1.26177152,602.73,601.91,3.62527558]
[1746659777519,1.26177152,602.72,601.91,3.62527558]
[1746659777819,2.25998881,602.71,601.91,3.62527558]
[1746659778019,1.26177152,602.7,601.91,3.62527558]
[1746659778221,2.25998881,602.69,601.91,3.62527558]
[1746659778415,2.25998881,602.68,601.91,3.62527558]
[1746659778615,1.26177152,602.67,601.91,3.62527558]
[1746659778813,2.25998881,602.66,601.91,3.62527558]
[1746659779020,1.26177152,602.65,601.91,3.62527558]
[1746659779214,0.99821729,602.66,601.91,3.62527558]
[1746659779420,1.26267552,602.65,601.91,3.62527558]
[1746659779620,0.99821729,602.65,601.91,3.62527558]
[1746659780014,0.99821729,602.64,601.91,3.62527558]
[1746659780416,0.99824202,602.63,601.91,3.62527558]
[1746659780920,0.99824202,602.62,601.91,3.62527558]
[1746659781115,0.99824202,602.61,601.91,3.62527558]
[1746659782021,0.99824202,602.6,601.91,3.62527558]
[1746659782820,0.28887339,602.98,601.91,3.62527558]
[1746659783016,1.26373487,602.97,601.91,3.62527558]
[1746659783221,1.26373487,602.96,601.91,3.62527558]
[1746659783523,1.26373487,602.95,601.91,3.62527558]
[1746659783724,2.26247967,602.94,601.91,3.62527558]
[1746659783926,1.26373487,602.93,601.91,3.62527558]
[1746659784119,1.26373487,602.92,601.91,3.62527558]
[1746659784323,2.26247967,602.91,601.91,3.62527558]
[1746659784624,1.26373487,602.9,601.91,3.62527558]
[1746659784818,1.26373487,602.89,601.91,3.62527558]
[1746659785024,1.26373487,602.88,601.91,3.62527558]
[1746659785324,0.9987448,602.89,601.91,3.62527558]
[1746659785325,1.26373487,602.87,601.91,3.62527558]
[1746659785520,1.26373487,602.86,601.91,3.62527558]
[1746659785722,1.26373487,602.85,601.91,3.62527558]
[1746659786018,1.26373487,602.84,601.91,3.62527558]
[1746659786219,1.26373487,602.83,601.91,3.62527558]
[1746659786423,1.26373487,602.82,601.91,3.62527558]
[1746659786621,2.26247967,602.81,601.91,3.62527558]
[1746659786824,2.26247967,602.8,601.91,3.62527558]
[1746659787023,1.26373487,602.79,601.91,3.62527558]
[1746659787224,2.26247967,602.78,601.91,3.62527558]
[1746659787426,1.26373487,602.77,601.91,3.62527558]
[1746659787626,1.26373487,602.76,601.91,3.62527558]
[1746659787926,1.26373487,602.75,601.91,3.62527558]
[1746659788119,1.26373487,602.74,601.91,3.62527558]
[1746659788323,1.26373487,602.73,601.91,3.62527558]
[1746659788524,0.9987448,602.75,601.91,3.62527558]
[1746659788721,1.26435813,602.74,601.91,3.62527558]
[1746659788925,2.26310293,602.73,601.91,3.62527558]
[1746659789122,0.9987448,602.73,601.91,3.62527558]
[1746659789322,0.9987448,602.72,601.91,3.62527558]
[1746659790029,0.9987448,602.71,601.91,3.62527558]
[1746659790723,0.9987448,602.7,601.91,3.62527558]
[1746659791328,0.9987448,602.69,601.91,3.62527558]
[1746659791726,0.9987448,602.68,601.91,3.62527558]
[1746659792525,0.9987448,602.67,601.91,3.62527558]